Cogmind - Beta 17 @@@ ROGUE MODE // 2026.07.09 @ 01:02:51 Player: Artackni Result: Destroyed by Y-54 Guardian with Gatling Laser Performance ------------- Evolutions (0) 0 Regions Visited (3) 600 Robots Destroyed (69) 345 Value Destroyed (1470) 1470 Prototype IDs (15) 300 Alien Tech Used (0) 0 Bonus (10517) 10517 TOTAL SCORE: 13232 Bonus ------- Prayed to X0-1V1 5000 Major X0-1V1 Interference 5700 Friendly Fire -183 Cogmind --------- Core Integrity 0/380 Matter 700/700 Energy 1298/1300 System Corruption 0% Temperature Cool (12) Movement Core (50) Location -7/Recycling Parts ------- > --- POWER (2) -------- (None) > --- PROPULSION (1) --- Armored Wheel > --- UTILITY (2) ------ (None) > --- WEAPON (2) ------- (None) > --- INVENTORY (5) ---- Arachnoskeleton Peak State ------------ > --- POWER ------------ Ion Engine Ion Engine > --- PROPULSION ------- Armored Wheel > --- UTILITY ---------- Huge Storage Unit X0-1V1's Piety Tracker > --- WEAPON ----------- EM Shotgun Subdweller Beam Cannon > --- INVENTORY -------- Arachnoskeleton Armored Wheel Armored Wheel Large Storage Unit Seismic Detector EMP Blaster Rocket Launcher Makeshift Hammer SUBCON Basin [Rating: 43] Favorites ----------- Power Ion Engine Engine Ion Engine Propulsion Light Treads Treads Light Treads Wheel Compact Wheel Utility Huge Storage Unit Device Seismic Detector Storage Huge Storage Unit Protection Scrap Shield Weapon Improved Light Cannon Energy Gun EM Pulse Gun Energy Cannon Subdweller Beam Cannon Ballistic Gun Heavy Battle Rifle Ballistic Cannon Improved Light Cannon Launcher EMP Blaster Impact Weapon Flail Piercing Weapon Makeshift Spear Build | -11 -10 -10 -7 ------- Run | Yrd Mat Sub Rec Slots Evolved . | . . . . Power . | . . . . Propulsion . | . . . . Utility . | . . . . Weapon . | . . . . Parts Attached 44 | 8 9 24 3 Power 5 | 1 1 3 . Engine 5 | 1 1 3 . Core . | . . . . Reactor . | . . . . Propulsion 12 | 2 2 6 2 Treads 3 | 2 . 1 . Leg . | . . . . Wheel 9 | . 2 5 2 Hover . | . . . . Flight . | . . . . Utility 8 | 2 3 2 1 Device 4 | 1 1 1 1 Storage 3 | 1 2 . . Processor . | . . . . Hackware . | . . . . Protection 1 | . . 1 . Artifact . | . . . . Weapon 19 | 3 3 13 . Energy Gun 3 | 2 . 1 . Energy Cannon 2 | . . 2 . Ballistic Gun 2 | 1 . 1 . Ballistic Cannon 5 | . 2 3 . Launcher 5 | . 1 4 . Special Weapon . | . . . . Impact Weapon 1 | . . 1 . Slashing Weapon . | . . . . Piercing Weapon 1 | . . 1 . Special Melee Weapon . | . . . . Unidentified Prototypes 1 | . 1 . . Corrupted Parts 1 | . . 1 . System Corruption 2 | . . 2 . Parts Lost 13 | . . 5 8 Power 3 | . . 1 2 Propulsion 3 | . . 1 2 Utility 3 | . . 1 2 Weapon 4 | . . 2 2 Highest Loss Streak 5 | . . 3 5 To Critical Strikes 1 | . . 1 . Average Backups 9 | 3 15 7 5 Power . | . 1 . . Propulsion 1 | 1 1 1 2 Utility 2 | . 3 1 1 Weapon 4 | . 8 3 1 Tool/Special . | . . . . Unused Backups 18 | . 2 12 4 Power 1 | . . 1 . Propulsion 3 | . 2 . 1 Utility 7 | . . 4 3 Weapon 7 | . . 7 . Tool/Special . | . . . . Average Slot Usage (%) 78 | . 99 70 56 Engine 12 | . 13 12 5 Treads 9 | . 11 10 . Wheel 11 | . 16 9 10 Device 7 | . 14 4 8 Storage 8 | . 14 4 10 Protection 4 | . . 8 . Ballistic Gun 2 | . . 4 . Ballistic Cannon 10 | . 26 3 . Launcher 5 | . . 8 8 Impact Weapon 1 | . . . 10 Piercing Weapon 1 | . . 1 . Peak Build Rating 43 | 7 25 43 43 Average Rating 16 | 5 11 17 29 On Entrance 18 | . 7 25 43 Avg Prop Armor Cover (%) 8 | . 10 5 27 Naked Turns 129 | . . . 129 Heaviest Build 102 | 13 94 102 97 Greatest Support 40 | 40 40 40 12 Greatest Overweight (x) 9 | . 9 8 8 Average Overweight (x) 2 | . 2 1 2 Largest Inventory Capacity 25 | 8 25 25 25 Average Capacity 15 | 6 20 11 19 Most Carried 25 | 5 25 25 25 Average Carried 12 | 3 15 10 19 Final Capacity 25 | 8 25 25 5 Final Carried 25 | 5 25 25 3 Class Distribution -------------------- 100% | Mutant Dominant Class ---------------- Mutant | -10/Materials Mutant | -10/Subcaves Mutant | -7/Recycling Resources | -11 -10 -10 -7 ----------- Run | Yrd Mat Sub Rec Matter Collected 2503 | 251 762 996 494 Remotely . | . . . . Salvage Created 1893 | 152 622 821 298 Parts 125 | 14 44 61 6 Haulers Intercepted 2 | . 2 . . Recyclers Shooed 1 | . 1 . . Parts Field Recycled . | . . . . Retrieved Matter . | . . . . Parts Self-Destructed 45 | . . 45 . Prevented 10 | . . 10 . Parts Restored . | . . . . Kills | -11 -10 -10 -7 ------- Run | Yrd Mat Sub Rec Combat Hostiles Destroyed 47 | . 13 29 5 Melee 1 | . . 1 . Guns 4 | . . 4 . Cannons 16 | . 10 6 . AOE 23 | . 3 17 3 Classes Destroyed 16 | 2 6 4 4 Worker 4 | . 4 . . Builder 3 | . 2 . 1 Tunneler 4 | 3 1 . . Hauler 2 | . 2 . . Recycler 5 | 1 3 . 1 Operator 2 | . 2 . . Turret 1 | . . 1 . Swarmer 19 | . 2 17 . Grunt 18 | . 11 6 1 Protector 1 | . . . 1 Sentry 1 | . . . 1 Demolisher 1 | . . . 1 Programmer 1 | . . . 1 Cobbler 1 | . . 1 . Subdweller 6 | . . 6 . Zionite 1 | . . 1 . Best Kill Streak 6 | 3 6 6 4 Combat Bots Only 6 | . 4 6 4 Max Kills in Single Turn 3 | 1 2 3 2 Gunslinging . | . . . . Exploded 3 | . 2 3 2 Melee 1 | . . 1 . Uniques/NPCs Destroyed . | . . . . Combat | -11 -10 -10 -7 -------- Run | Yrd Mat Sub Rec Hostile Shots Fired 537 | . 44 165 328 Missed 205 | . 10 56 139 Hits 332 | . 34 109 189 Projectile 332 | . 34 109 189 Critical Strikes 4 | . 1 2 1 Part Disruptions 1 | . . 1 . Damage Taken 3387 | . 424 1454 1509 Core 1213 | . 57 411 745 Absorbed by Shields . | . . . . Core Remaining (%) 100 | 100 . . . Volleys Fired 191 | 18 62 100 11 Largest 2 | 1 2 2 1 Hottest 80 | 20 66 80 33 Shots Fired 267 | 18 123 115 11 Gun 50 | 18 . 32 . Cannon 172 | . 121 51 . Launcher 45 | . 2 32 11 Special . | . . . . Kinetic 192 | 18 121 53 . Thermal 20 | . . 20 . Explosive 7 | . 2 . 5 Electromagnetic 48 | . . 42 6 Robot Hit Streak 11 | 8 9 11 5 Robot Miss Streak 4 | 1 4 3 1 Penetration Max . | . . . . Secondary Targets . | . . . . Shots Hit Robots 141 | 15 61 51 14 Core Hits 93 | 5 31 43 14 Critical Kills . | . . . . Critical Parts Destroyed 1 | . . . 1 Critical Strikes 5 | . 4 . 1 Blast 4 | . 4 . . Smash 1 | . . . 1 Melee Attacks 32 | . . 18 14 Impact 14 | . . . 14 Slashing . | . . . . Piercing 18 | . . 18 . Sneak Attacks 5 | . . 3 2 Combat Hostiles . | . . . . Follow-up Attacks 1 | . . . 1 Damage Inflicted 4244 | 194 1633 1675 742 Guns 354 | 194 . 160 . Cannons 1881 | . 1342 539 . Explosions 1393 | . 291 762 340 Melee 616 | . . 214 402 Ramming . | . . . . Kinetic 1941 | 194 1342 405 . Thermal 301 | . . 301 . Explosive 458 | . 291 . 167 Electromagnetic 928 | . . 755 173 Impact 402 | . . . 402 Slashing . | . . . . Piercing 214 | . . 214 . Highest Corruption 44 | . 5 44 . Average Corruption 9 | . 4 12 . Corruption Purged . | . . . . Corruption Blocked . | . . . . Effects 128 | . 28 100 . Message Errors 24 | . 5 19 . Matter Fused 27 | . 7 20 . Heat Flow Errors 12 | . 2 10 . Energy Discharges 14 | . 4 10 . Parts Rejected 2 | . 1 1 . Parts Fused 4 | . 1 3 . Data Loss (minor) 15 | . 4 11 . Data Loss (major) 8 | . 2 6 . Misfires 10 | . 1 9 . Alerts 3 | . 1 2 . Misdirections 2 | . . 2 . Weapon Failures 7 | . . 7 . Overload Shots . | . . . . Overflow Damage 254 | . 6 43 205 Projectiles 14 | . 6 8 . Explosions 35 | . . 35 . Melee 205 | . . . 205 Knockbacks 14 | . 11 2 1 Impact 1 | . . . 1 Kinetic 12 | . 10 2 . Secondary 1 | . 1 . . Self-Inflicted Damage 210 | . 35 118 57 Shots 13 | . 1 9 3 Rammed . | . . . . Targets Rammed . | . . . . Kicked . | . . . . Crushed . | . . . . Highest Temperature 278 | . 252 278 38 Average Temperature 46 | . 25 105 21 Received Heat Transfer 834 | . 198 231 405 Effects 1 | . . 1 . Energy Bleed 1 | . . 1 . Siege Activations . | . . . . Martial Activations . | . . . . Shielding Activations . | . . . . Robots Disrupted . | . . . . Combat Hostiles . | . . . . Robots Corrupted 2 | . . . 2 Combat Hostiles 1 | . . . 1 Parts Fried 7 | . . . 7 Impact Corruptions 6 | . . . 6 Robots Melted . | . . . . Combat Hostiles . | . . . . Parts Melted . | . . . . Heat Transferred 409 | . . 409 . Parts Sabotaged . | . . . . Parts Stolen . | . . . . Parts Stripped . | . . . . Power Chain Reactions 4 | . . 3 1 Alert | -11 -10 -10 -7 ------- Run | Yrd Mat Sub Rec Maximum Alert Level 1 | . . . 1 Low Security (%) 83 | 100 100 . 27 Level 1 16 | . . . 72 Level 2 . | . . . . Level 3 . | . . . . Level 4 . | . . . . Level 5 . | . . . . High Security . | . . . . Max Security . | . . . . Peak Influence 354 | 10 158 . 354 Initial 136 | . . . 136 Average 105 | 1 62 . 268 Influence Increases 1500 | 20 532 545 403 Destroy 0b10 Robot/C 820 | . 260 480 80 Destroy 0b10 Robot/NC 105 | 20 70 . 15 Destroy Leader 84 | . 64 20 . Disable Machine 45 | . 30 . 15 Destroy Structure 50 | . 33 . 17 Partial Spotted 30 | . . . 30 Lose Combat Pursuer 150 | . 75 45 30 Miscellaneous 216 | . . . 216 Influence Decreases 1287 | 20 402 390 475 Entered New Map 212 | . . 63 149 Time Decay 885 | 20 402 217 246 Lost Part 130 | . . 50 80 Lost Ally 60 | . . 60 . Squads Dispatched 3 | . 2 . 1 Investigation 2 | . 2 . . Extermination 1 | . . . 1 Reinforcement . | . . . . Assault . | . . . . Garrison . | . . . . Intercept . | . . . . Searches Triggered . | . . . . Construction Impeded . | . . . . Haulers Reinforced . | . . . . Active Scanning Responses . | . . . . Cargo Convoy Interrupts . | . . . . Stealth | -11 -10 -10 -7 --------- Run | Yrd Mat Sub Rec Distress Signals 5 | . 5 . . Communications Jammed . | . . . . Distress Signals . | . . . . Times Spotted 95 | . 33 42 20 Peak Tracking Total 6 | . 6 6 5 Tactical Retreats 7 | . 4 2 1 Traps | -11 -10 -10 -7 ------- Run | Yrd Mat Sub Rec Traps Triggered 7 | . 6 1 . Indirectly . | . . . . Trap Hack Attempts . | . . . . Triggered . | . . . . Disarmed . | . . . . Reprogrammed . | . . . . Reused . | . . . . Traps Extracted . | . . . . Installed . | . . . . Triggered . | . . . . Machines | -11 -10 -10 -7 ---------- Run | Yrd Mat Sub Rec Machines Disabled 5 | . 2 2 1 Max in Single Turn 2 | . 2 1 1 Machines Repaired . | . . . . Machines Dismantled . | . . . . Machines Sabotaged . | . . . . Overloaded Fab Kills . | . . . . Hacking | -11 -10 -10 -7 --------- Run | Yrd Mat Sub Rec Machines Accessed 3 | . . 3 . Terminals . | . . . . Fabricators . | . . . . Repair Stations . | . . . . Recycling Units . | . . . . Scanalyzers . | . . . . Garrison Access . | . . . . Total Hacks 4 | . . 4 . Successful 4 | . . 4 . Failed . | . . . . Catastrophic . | . . . . Database Lockouts . | . . . . Manual 1 | . 1 . . Terminals . | . . . . Fabricators . | . . . . Repair Stations . | . . . . Recycling Units . | . . . . Scanalyzers . | . . . . Garrison Access . | . . . . Terminal Hacks 4 | . . 4 . Record 1 | . . 1 . Open Door 1 | . . 1 . Proto ID Catalog 1 | . . 1 . Release Object 1 | . . 1 . Fabricator Hacks . | . . . . Repair Station Hacks . | . . . . Recycling Unit Hacks . | . . . . Scanalyzer . | . . . . Garrison Access Hacks . | . . . . Unauthorized Hacks . | . . . . Terminals . | . . . . Fabricators . | . . . . Repair Stations . | . . . . Recycling Units . | . . . . Scanalyzers . | . . . . Garrison Access . | . . . . Data Cores Recovered 1 | . 1 . . Used . | . . . . Hacking Detections . | . . . . Full Trace Events . | . . . . Feedback Events . | . . . . Feedback Blocked . | . . . . Robot Schematics Acquired . | . . . . Robots Built . | . . . . Authchips . | . . . . Time . | . . . . Total Robot Build Rating . | . . . . Part Schematics Acquired . | . . . . Parts Built . | . . . . Authchips . | . . . . Time . | . . . . Total Part Build Rating . | . . . . Part Studies Acquired . | . . . . Parts Repaired . | . . . . Time . | . . . . Parts Recycled . | . . . . Recycled Matter . | . . . . Retrieved Matter . | . . . . Retrieved Components . | . . . . Parts Scanalyzed . | . . . . Part Schematics Acquired . | . . . . Parts Damaged . | . . . . Bothacking | -11 -10 -10 -7 ------------ Run | Yrd Mat Sub Rec Used RIF Installer . | . . . . Robots Hacked . | . . . . Non-combat . | . . . . Combat . | . . . . Robot Hacks Applied . | . . . . Relay Couplers Released . | . . . . Fabnet Peak Effective % . | . . . . Robots Rewired . | . . . . Allies Hacked . | . . . . Hacks Repelled . | . . . . Allies | -11 -10 -10 -7 -------- Run | Yrd Mat Sub Rec Total Allies 3 | . . 3 . Largest Group 3 | . . 3 . Highest-Rated Group 15 | . . 15 . Highest-Rated Ally 5 | . . 5 . Total Orders . | . . . . Ally Attacks 16 | . . 16 . Total Damage 106 | . . 106 . Kills . | . . . . Allies Corrupted . | . . . . Allies Melted . | . . . . X0-1V1 Amusement Gains 89 | . 4 5 80 Good Acts 41 | . . 29 12 Bad Acts 65 | . . 51 14 Intel | -11 -10 -10 -7 ------- Run | Yrd Mat Sub Rec Active Infowar (turns) 1560 | 16 1544 . . Seismic 1560 | 16 1544 . . Robot Analysis Total . | . . . . Derelict Logs Recovered 1 | . . 1 . Drone Launches . | . . . . Drone Recoveries . | . . . . Exploration | -11 -10 -10 -7 ------------- Run | Yrd Mat Sub Rec Turns Passed 5144 | 157 1636 2826 525 Spaces Moved 3125 | 68 860 1772 425 Core 423 | 4 . 161 258 Treads 928 | 64 254 610 . Legs . | . . . . Wheels 1774 | . 606 1001 167 Hover . | . . . . Flight . | . . . . Fastest Speed 50 | 50 135 50 50 Average Speed 140 | 153 158 139 107 Slowest Speed 480 | 160 480 240 210 Overloaded Moves . | . . . . Propulsion Burnouts . | . . . . Robots Hopped . | . . . . Potential Cave-ins 8 | . . . 8 Cave-ins Triggered . | . . . . Exploration Rate (%) 57 | 4 93 71 60 Regions Visited 3 Branch Regions 2 Pre-discovered Areas 1 | . . 1 . Known Exits Taken 1 | . . 1 . Unknown Exits Taken 2 | 1 1 . . Scrap Searched 8 | . . 8 . Spaces Dug 2 | . . 2 . Terrain Destroyed 71 | . 26 18 27 Melee 1 | . . 1 . Projectile 19 | . 8 11 . AOE 51 | . 18 6 27 Terrain Rammed . | . . . . Walls Destroyed . | . . . . Machines Disabled . | . . . . Actions | -11 -10 -10 -7 --------- Run | Yrd Mat Sub Rec Total 3584 | 99 1007 2011 467 Wait 51 | . 35 16 . Move 3122 | 67 859 1771 425 Hop . | . . . . Pick Up 61 | 4 21 34 2 Fast Attach 30 | 8 11 10 1 Attach 17 | . . 12 5 Detach 15 | 1 5 8 1 Swap 18 | 1 6 10 1 Drop 39 | . 8 28 3 Fire 191 | 18 62 100 11 Melee 31 | . . 18 13 Ram . | . . . . Kick . | . . . . Crush . | . . . . Escape Stasis . | . . . . Rewire . | . . . . Trap . | . . . . Miscellaneous 9 | . . 4 5 Route ------- -11/Scrapyard -10/Materials (discovered 5 exits: [*Mat x3] / [*Min] / *Sub) -10/Subcaves (discovered 2 exits: [*Mat] / *Rec) -7/Recycling (discovered 1 exit: Scr) History --------- Turn | Location | Event 5 | -11/Scrapyard | Discovered new exit (range 14) 158 | -11/Scrapyard | Entered Materials 302 | -10/Materials | Build established: Mutant 499 | -10/Materials | Discovered new exit (range 6) 978 | -10/Materials | Discovered new exit (range 16) 1389 | -10/Materials | Discovered new exit (range 16) 1639 | -10/Materials | Discovered new exit (range 9) 1683 | -10/Materials | Discovered new exit (range 10) 1698 | -10/Materials | Prayed at D.C.S.S. Altar Unit 1794 | -10/Materials | Entered Subcaves 1795 | -10/Subcaves | Approached by a straggling Scientist 2245 | -10/Subcaves | A swath of the cavern ceiling suddenly collapsed 2356 | -10/Subcaves | Discovered new exit (range 12) 2410 | -10/Subcaves | Visited 4L-MR0's lab 2433 | -10/Subcaves | Core integrity permanently improved by X0-1V1 (+200) 2491 | -10/Subcaves | System corruption reached 10% 2759 | -10/Subcaves | Discovered new exit (range 9) 2797 | -10/Subcaves | Shifting Twisted Machinery released Mak. Spear 2827 | -10/Subcaves | Shifting Twisted Machinery released Battle Cannon 2935 | -10/Subcaves | X0-1V1 mutated your Propulsion slot to Power slot 3069 | -10/Subcaves | A swath of the cavern ceiling suddenly collapsed 3079 | -10/Subcaves | Learned location of Zion (-7) 3079 | -10/Subcaves | Met a Zionite searching for "candidates" 3192 | -10/Subcaves | Disturbed a concealed Subdweller 3308 | -10/Subcaves | X0-1V1 mutated your Weapon slot to Propulsion slot 3312 | -10/Subcaves | Core integrity restored by X0-1V1 (+112) 3319 | -10/Subcaves | Identified exit to Recycling 3319 | -10/Subcaves | X0-1V1 revealed exit location to -7/Recycling 3345 | -10/Subcaves | System corruption reached 30% 3349 | -10/Subcaves | X0-1V1 sent hostile S-10 Pest (x5) 3368 | -10/Subcaves | X0-1V1 mutated your Propulsion slot to Utility slot 3372 | -10/Subcaves | X0-1V1 sent you into danger 3378 | -10/Subcaves | X0-1V1 activates XOMVISION 3415 | -10/Subcaves | X0-1V1 sent allied S-10 Pest (x3) 3425 | -10/Subcaves | X0-1V1 whisked you away to safety 3460 | -10/Subcaves | X0-1V1 sent you into danger 3499 | -10/Subcaves | Lost 3 parts (1p1u1w) 3591 | -10/Subcaves | X0-1V1 sent hostile S-10 Pest (x5) 3601 | -10/Subcaves | Core integrity fell below 50% 4075 | -10/Subcaves | Learned 8 Materials zone layouts 4091 | -10/Subcaves | Found SUBCON Basin 4305 | -10/Subcaves | Found Arachnoskeleton 4349 | -10/Subcaves | X0-1V1 activates XOMVISION 4363 | -10/Subcaves | X0-1V1 sent hostile S-10 Pest (x5) 4387 | -10/Subcaves | X0-1V1 mutated your Utility slot to Propulsion slot 4399 | -10/Subcaves | X0-1V1 tapped a No Entrance sign 4405 | -10/Subcaves | Core integrity restored by X0-1V1 (+94) 4450 | -10/Subcaves | X0-1V1 sent hostile G-34 Mercenary (x3) 4477 | -10/Subcaves | Core integrity restored by X0-1V1 (+76) 4529 | -10/Subcaves | X0-1V1 mutated your Propulsion slot to Weapon slot 4554 | -10/Subcaves | X0-1V1 sent hostile G-34 Mercenary (x3) 4575 | -10/Subcaves | X0-1V1 sent you into danger 4578 | -10/Subcaves | Core integrity restored by X0-1V1 (+81) 4620 | -10/Subcaves | Entered Recycling 4622 | -7/Recycling | X0-1V1 added 0b10 threat records associated with you (considerable) 4624 | -7/Recycling | Ranged accuracy permanently improved by X0-1V1 (+7%; -70 max core) 4636 | -7/Recycling | Identified exit to Scraptown 4636 | -7/Recycling | X0-1V1 revealed exit location to -7/Scraptown 4701 | -7/Recycling | X0-1V1 sent you into danger 4736 | -7/Recycling | Core integrity restored by X0-1V1 (+87) 4754 | -7/Recycling | Lost 3 parts (2p1u) 4963 | -7/Recycling | X0-1V1 vaporized surrounding terrain (radius 22) 5009 | -7/Recycling | Core integrity fell below 20% 5009 | -7/Recycling | Released all parts (3) 5036 | -7/Recycling | Lost 5 parts (2n1u2w) 5084 | -7/Recycling | X0-1V1 rescued you from certain death 5133 | -7/Recycling | X0-1V1 activates XOMVISION 5139 | -7/Recycling | X0-1V1 sent you into danger 5145 | -7/Recycling | Destroyed by Y-54 Guardian with Gatling Laser Last Messages --------------- X0-1V1's Piety Tracker suddenly appears amidst shimmering waves of color. 05142_ X0-1V1: "Your inner air conditioner seems to have fallen into disrepair." (-25 heat dissipation) 05145_ X0-1V1: "The ol' switcheroo!" H-55 Commando form resolidifies at new position. Y-54 Guardian form resolidifies at new position. R-06 Scavenger form resolidifies at new position. Form resolidifies at new position. R-06 Scavenger form resolidifies at new position. A-02 Transporter form resolidifies at new position. R-06 Scavenger form resolidifies at new position. P-60 Hacker form resolidifies at new position. R-06 Scavenger form resolidifies at new position. U-05 Engineer form resolidifies at new position. R-06 Scavenger form resolidifies at new position. Y-54 Guardian form resolidifies at new position. R-06 Scavenger form resolidifies at new position. Y-54 Guardian form resolidifies at new position. 05145_ Acquired 10 matter. 05145_ X0-1V1 snickers! Map ----- +----------------------------------------------------+ | ???????????# """ """ ##? #????? ????????????? | | ?????????#?# "#? #?????? ?????????????? | | ?????????# # """ """ "## #?????? ?????????????? | | ????##+### # """ """ "## #?######/############+## | | ????? # """ """ T## ### | | ?????? / """ " " | | ???????? # """ """ """ " " | | ?????????##" """ "" """/""""""""###/######## # | | ????????## " """ """ """ #?# # | | ??????### " " " """ """"""" #?# # | | ?????## " " ; "Y" """"""" #?# # | | ?????# " # """";; ; """"""" #?# # | | ????## ; """"""" #?# # | | ???##""" " ## # ; """"""" #?# # | | ####"" """ # ; #?# # | | ; #?# # | | # ;;r;;;""T"";;;""""##?# # | | # # ;"""""; #?# # | | ##""""""## % YY ;;;;;;;;;;""""### # | | " ### ## ;r # # | | " # # ;;; ;; # # | | " # ######p%;;;;Y;; ; # # | | " # # u ; r ; + + | | " # +% % %ar;; ; # # | | " # # h r ; # # | | """### # r%% @ ;; ; # # | | ?? / #"""#####+#;;;; ; # # | | """# u """""" # # ;;;;;;"""#### # | | " # #"""""" " ; #??# # | | " # ###" """" ; %;;;####;;;;;; #??# # | | " " % ; r % d ; #??# # | | % " " &! ; ;!% r ; #??# # | | " " "" "" % ; ; / " #??# # | | " " %%" """ ;%% ] " ##??# # | | ##""""" "Y """"" # # r / " #####+# | | ?# " ! ### r " ## | | ?## " # " ### "" | | ??# " + *" #?# "Y | | ??## " % # r [ ! " ##?# "" | | ???## " % " % " ##??# | | ????##"""""#+#########""""% % "##???# ! | | ????? ! " % "% "#????# | | ????## " """""""""""""##????# | | ?????# " ###?????##"T"# | | ?????# " ##????????#"""? | | ?????######""#####"" ##?????????####? | | ???????????????????? ###??????????????? | | ????????????????????? ###?????????????????? | | | | | +----------------------------------------------------+ Best States ------------- Heat Dissipation 25 Energy Generation 23 Energy Capacity 1600 Matter Stores 700 Matter Capacity 700 Sight Range 21 Terrain Scan Density 10 Armor Coverage 800 Evasion (%) 50 Recoil Reduction 2 Item Schematics ----------------- None Robot Schematics ------------------ None Fabricated ------------ Nothing Repaired ---------- Nothing Studied --------- None Alien Tech Used ----------------- None Achievements -------------- None Challenges ------------ None Game ------ Seed IonicSpreadBlasthammer Manual? 0 Play Time 00:39:01 Cumulative 270.3 hours Start 2026.07.09 @ 00:12:56 End 2026.07.09 @ 01:02:51 Sessions 1 Manual Loads 0 Difficulty Rogue Special Mode None Game No. 124 Rogue 124 Adventurer 0 Explorer 0 Win Type - Total 16 Types 12/1/1/1/0/0/0/0/0/1 Lore% 76 Gallery% 73 Achievement% 72 Wizard Run 0 Options --------- Layout 0 ASCII 0 Keyboard 1 Movement Arrows Keybinds 0 Fullscreen 2 Font 18/SmallcapsGlow Map View 76x50 Zoom Use 0% Tactical HUD 1 Map Filters NONE Filters NONE Steam 1 RUN: cdbc8a2c-a629-442a-ae00-914da05bb503